Cogmind - Beta 13 @@@ ROGUE MODE // 2024.04.21 @ 22:08:31 Player: Xeros08 Result: Destroyed by G-34 Mercenary with Small Laser Performance ------------- Evolutions (1) 500 Regions Visited (2) 400 Robots Destroyed (6) 30 Value Destroyed (155) 155 Prototype IDs (0) 0 Alien Tech Used (0) 0 Bonus (0) 0 TOTAL SCORE: 1085 Bonus ------- None Cogmind --------- Core Integrity 0/400 Matter 291/300 Energy 99/100 System Corruption 0% Temperature Cool (6) Movement Core (200) Ox3 Location -9/Materials Parts ------- > --- POWER (2) -------- (None) > --- PROPULSION (3) --- (None) > --- UTILITY (2) ------ Heat Sink Medium Storage Unit > --- WEAPON (2) ------- (None) > --- INVENTORY (10) --- (None) Peak State ------------ > --- POWER ------------ Light Ion Engine > --- PROPULSION ------- Aluminum Leg Aluminum Leg > --- UTILITY ---------- Heat Sink Weight Redist. System > --- WEAPON ----------- Heavy EM Pulse Gun Heavy EM Pulse Gun > --- INVENTORY -------- (None) [Rating: 10] Favorites ----------- Power Light Ion Engine Engine Light Ion Engine Propulsion Aluminum Leg Leg Aluminum Leg Utility Heat Sink Device Heat Sink Storage Medium Storage Unit Weapon Heavy EM Pulse Gun Energy Gun Heavy EM Pulse Gun Energy Cannon Beam Cannon Ballistic Gun Light Assault Rifle Build | -11 -10 -9 ------- Run | Yrd Mat Mat Slots Evolved 2 | . . 2 Power 1 | . . 1 Propulsion 1 | . . 1 Utility . | . . . Weapon . | . . . Parts Attached 13 | 6 7 . Power 2 | 1 1 . Engine 2 | 1 1 . Core . | . . . Reactor . | . . . Propulsion 2 | 2 . . Treads . | . . . Leg 2 | 2 . . Wheel . | . . . Hover . | . . . Flight . | . . . Utility 3 | 1 2 . Device 2 | 1 1 . Storage 1 | . 1 . Processor . | . . . Hackware . | . . . Protection . | . . . Artifact . | . . . Weapon 6 | 2 4 . Energy Gun 4 | 2 2 . Energy Cannon 1 | . 1 . Ballistic Gun 1 | . 1 . Ballistic Cannon . | . . . Launcher . | . . . Special Weapon . | . . . Impact Weapon . | . . . Slashing Weapon . | . . . Piercing Weapon . | . . . Special Melee Weapon . | . . . Unidentified Prototypes . | . . . Parts Lost 5 | . . 5 Power 1 | . . 1 Propulsion 2 | . . 2 Utility . | . . . Weapon 2 | . . 2 Highest Loss Streak 4 | . . 4 To Critical Strikes . | . . . Average Slot Usage (%) 70 | . 94 46 Engine 8 | . 14 3 Leg 19 | . 28 11 Device 17 | . 23 11 Storage 5 | . . 11 Energy Gun 14 | . 24 3 Energy Cannon 2 | . . 5 Ballistic Gun 1 | . 2 . Naked Turns . | . . . Heaviest Build 20 | 8 20 20 Greatest Support 26 | 20 26 20 Greatest Overweight (x) 3 | . . 3 Average Overweight (x) . | . . 1 Largest Inventory Capacity 10 | 5 10 10 Average Capacity 7 | 5 5 10 Most Carried 3 | 2 3 . Average Carried . | . . . Final Capacity 10 | 5 10 10 Final Carried . | . . . Class Distribution -------------------- 100% | Mutant Dominant Class ---------------- Mutant | -10/Materials Mutant | -9/Materials Resources | -11 -10 -9 ----------- Run | Yrd Mat Mat Matter Collected 296 | 260 36 . Remotely . | . . . Salvage Created 162 | 34 50 78 Parts 13 | 4 6 3 Haulers Intercepted . | . . . Recyclers Shooed . | . . . Parts Field Recycled . | . . . Retrieved Matter . | . . . Parts Self-Destructed . | . . . Prevented . | . . . Kills | -11 -10 -9 ------- Run | Yrd Mat Mat Combat Hostiles Destroyed 6 | 1 3 2 Guns 3 | 1 2 . Cannons 2 | . . 2 AOE 1 | . 1 . Classes Destroyed 2 | 1 1 . Swarmer 3 | . 3 . Grunt 3 | 1 . 2 Best Kill Streak 2 | 1 1 2 Combat Bots Only 2 | 1 1 2 Max Kills in Single Turn 1 | 1 1 1 Gunslinging . | . . . Exploded 1 | . 1 . Melee . | . . . Uniques/NPCs Destroyed . | . . . Combat | -11 -10 -9 -------- Run | Yrd Mat Mat Hostile Shots Fired 129 | 5 38 86 Missed 34 | 5 12 17 Damage Taken 1014 | . 209 805 Core 462 | . 60 402 Absorbed by Shields . | . . . Core Remaining (%) 88 | 100 76 . Volleys Fired 24 | 3 7 14 Largest 2 | 2 2 2 Hottest 105 | 90 90 105 Shots Fired 36 | 6 14 16 Gun 22 | 6 14 2 Cannon 14 | . . 14 Launcher . | . . . Special . | . . . Kinetic . | . . . Thermal 17 | 3 . 14 Explosive . | . . . Electromagnetic 19 | 3 14 2 Robot Hit Streak 5 | 3 4 5 Robot Miss Streak 3 | 2 3 2 Penetration Max . | . . . Secondary Targets . | . . . Shots Hit Robots 20 | 3 8 9 Core Hits 8 | 2 3 3 Critical Kills . | . . . Critical Parts Destroyed . | . . . Critical Strikes . | . . . Melee Attacks . | . . . Impact . | . . . Slashing . | . . . Piercing . | . . . Sneak Attacks . | . . . Combat Hostiles . | . . . Follow-up Attacks . | . . . Damage Inflicted 349 | 38 156 155 Guns 144 | 38 90 16 Cannons 139 | . . 139 Explosions 66 | . 66 . Melee . | . . . Ramming . | . . . Kinetic . | . . . Thermal 218 | 13 66 139 Explosive . | . . . Electromagnetic 131 | 25 90 16 Impact . | . . . Slashing . | . . . Piercing . | . . . Highest Corruption . | . . . Average Corruption . | . . . Corruption Purged . | . . . Corruption Blocked . | . . . Overload Shots . | . . . Overflow Damage 2 | . 2 . Projectiles . | . . . Explosions 2 | . 2 . Melee . | . . . Knockbacks . | . . . Impact . | . . . Kinetic . | . . . Secondary . | . . . Self-Inflicted Damage . | . . . Shots . | . . . Rammed . | . . . Targets Rammed . | . . . Kicked . | . . . Crushed . | . . . Highest Temperature 90 | 90 . 48 Average Temperature 30 | 48 . 13 Received Heat Transfer 438 | . . 438 Siege Activations . | . . . Robots Corrupted . | . . . Combat Hostiles . | . . . Parts Fried 1 | . 1 . Impact Corruptions . | . . . Robots Melted . | . . . Combat Hostiles . | . . . Parts Melted . | . . . Heat Transferred 383 | 37 50 296 Parts Sabotaged . | . . . Parts Stolen . | . . . Parts Stripped . | . . . Power Chain Reactions 1 | . 1 . Alert | -11 -10 -9 ------- Run | Yrd Mat Mat Peak Influence 117 | 20 117 94 Initial 49 | . 13 49 Average 45 | 3 44 61 Maximum Alert Level . | . . . Low Security (%) 100 | 100 100 100 Level 1 . | . . . Level 2 . | . . . Level 3 . | . . . Level 4 . | . . . Level 5 . | . . . High Security . | . . . Max Security . | . . . Squads Dispatched 1 | . . 1 Investigation . | . . . Extermination . | . . . Reinforcement 1 | . . 1 Assault . | . . . Garrison . | . . . Intercept . | . . . Searches Triggered . | . . . Construction Impeded . | . . . Haulers Reinforced . | . . . Active Scanning Responses . | . . . Cargo Convoy Interrupts . | . . . Stealth | -11 -10 -9 --------- Run | Yrd Mat Mat Distress Signals 3 | . 1 2 Communications Jammed . | . . . Distress Signals . | . . . Times Spotted 11 | 1 5 5 Peak Tracking Total 4 | 1 3 4 Tactical Retreats . | . . . Traps | -11 -10 -9 ------- Run | Yrd Mat Mat Traps Triggered . | . . . Indirectly . | . . . Trap Hack Attempts . | . . . Triggered . | . . . Disarmed . | . . . Reprogrammed . | . . . Reused . | . . . Traps Extracted . | . . . Installed . | . . . Triggered . | . . . Machines | -11 -10 -9 ---------- Run | Yrd Mat Mat Machines Disabled 1 | . 1 . Max in Single Turn 1 | . 1 . Machines Repaired . | . . . Machines Dismantled . | . . . Machines Sabotaged . | . . . Overloaded Fab Kills . | . . . Hacking | -11 -10 -9 --------- Run | Yrd Mat Mat Machines Accessed . | . . . Terminals . | . . . Fabricators . | . . . Repair Stations . | . . . Recycling Units . | . . . Scanalyzers . | . . . Garrison Access . | . . . Total Hacks . | . . . Successful . | . . . Failed . | . . . Catastrophic . | . . . Database Lockouts . | . . . Manual . | . . . Terminals . | . . . Fabricators . | . . . Repair Stations . | . . . Recycling Units . | . . . Scanalyzers . | . . . Garrison Access . | . . . Terminal Hacks . | . . . Fabricator Hacks . | . . . Repair Station Hacks . | . . . Recycling Unit Hacks . | . . . Scanalyzer . | . . . Garrison Access Hacks . | . . . Unauthorized Hacks . | . . . Terminals . | . . . Fabricators . | . . . Repair Stations . | . . . Recycling Units . | . . . Scanalyzers . | . . . Garrison Access . | . . . Data Cores Recovered . | . . . Used . | . . . Hacking Detections . | . . . Full Trace Events . | . . . Feedback Events . | . . . Feedback Blocked . | . . . Robot Schematics Acquired . | . . . Robots Built . | . . . Authchips . | . . . Time . | . . . Total Robot Build Rating . | . . . Part Schematics Acquired . | . . . Parts Built . | . . . Authchips . | . . . Time . | . . . Total Part Build Rating . | . . . Parts Repaired . | . . . Time . | . . . Parts Recycled . | . . . Recycled Matter . | . . . Retrieved Matter . | . . . Retrieved Components . | . . . Parts Scanalyzed . | . . . Part Schematics Acquired . | . . . Parts Damaged . | . . . Bothacking | -11 -10 -9 ------------ Run | Yrd Mat Mat Used RIF Installer . | . . . Robots Hacked . | . . . Non-combat . | . . . Combat . | . . . Robot Hacks Applied . | . . . Relay Couplers Released . | . . . Fabnet Peak Effective % . | . . . Robots Rewired . | . . . Allies Hacked . | . . . Hacks Repelled . | . . . Allies | -11 -10 -9 -------- Run | Yrd Mat Mat Total Allies . | . . . Largest Group . | . . . Highest-Rated Group . | . . . Highest-Rated Ally . | . . . Total Orders . | . . . Ally Attacks . | . . . Total Damage . | . . . Kills . | . . . Allies Corrupted . | . . . Allies Melted . | . . . Intel | -11 -10 -9 ------- Run | Yrd Mat Mat Robot Analysis Total . | . . . Derelict Logs Recovered . | . . . Drone Launches . | . . . Drone Recoveries . | . . . Exploration | -11 -10 -9 ------------- Run | Yrd Mat Mat Turns Passed 557 | 93 233 231 Spaces Moved 367 | 77 163 127 Core 74 | 30 . 44 Treads . | . . . Legs 293 | 47 163 83 Wheels . | . . . Hover . | . . . Flight . | . . . Fastest Speed 50 | 50 120 120 Average Speed 127 | 92 120 159 Slowest Speed 200 | 120 120 200 Overloaded Moves . | . . . Propulsion Burnouts . | . . . Robots Hopped . | . . . Cave-ins Triggered . | . . . Exploration Rate (%) 11 | 7 21 5 Regions Visited 2 Branch Regions . Pre-discovered Areas . | . . . Known Exits Taken . | . . . Unknown Exits Taken 2 | 1 1 . Scrap Searched . | . . . Spaces Dug . | . . . Terrain Destroyed 4 | . 4 . Melee . | . . . Projectile . | . . . AOE 4 | . 4 . Terrain Rammed . | . . . Walls Destroyed . | . . . Machines Disabled . | . . . Actions | -11 -10 -9 --------- Run | Yrd Mat Mat Total 422 | 92 189 141 Wait 1 | 1 . . Move 365 | 76 162 127 Hop . | . . . Pick Up 13 | 6 7 . Fast Attach . | . . . Attach 12 | 6 6 . Detach . | . . . Swap 1 | . 1 . Drop 6 | . 6 . Fire 24 | 3 7 14 Melee . | . . . Ram . | . . . Kick . | . . . Crush . | . . . Escape Stasis . | . . . Rewire . | . . . Trap . | . . . Miscellaneous . | . . . Route ------- -11/Scrapyard -10/Materials -9/Materials History --------- Turn | Location | Event 2 | -11/Scrapyard | Met Revision 17 62 | -11/Scrapyard | Discovered new exit (range 8) 94 | -11/Scrapyard | Entered Materials 300 | -10/Materials | Build established: Mutant 324 | -10/Materials | Discovered new exit (range 3) 327 | -10/Materials | Entered another Materials area 327 | -9/Materials | Evolved 2 slots: Power x1, Propulsion x1 463 | -9/Materials | Lost 4 parts (1p1n2w) 499 | -9/Materials | Core integrity fell below 50% 535 | -9/Materials | Core integrity fell below 20% 558 | -9/Materials | Destroyed by G-34 Mercenary with Small Laser Last Messages --------------- Dropped Weight Redist. System. Acquired Med. Storage Unit. Dropped Hvy. EM Pulse Gun. Acquired Beam Cannon. W-16 Scout sends out distress signal. EXIT=FOUND PARAMETERS=POWER+1,PROPULSION+1 LOCATION=UNKNOWN GOAL=ESCAPE Hvy. EM Pulse Gun destroyed. Lgt. Ion Engine destroyed. G-47 Trooper destroyed. G-34 Mercenary destroyed. Aluminum Leg destroyed. Beam Cannon destroyed. R-06 Scavenger collects Aluminum Leg. ALERT: Hostiles spotted, dispatching reinforcements to Terminal M009. R-06 Scavenger collects Heat Sink. Aluminum Leg destroyed. Map ----- +----------------------------------------------------+ | ?????????????????????????????????????????????????? | | ?????????????????????????????????????????????????? | | ?????????????????????????????????????????????????? | | ?????????????????????????????????????????????????? | | ?????????????????????????????????????????????????? | | ?????????????????????????????????????????????????? | | ?????????????????????????????????????????????????? | | ?????????????????????????????????????????????????? | | ?????????????????????????????# ????????????????? | | ?????????????????????????????# ????????????????? | | ?????????????????????????????# ????????????????? | | ?????????????????????????????# #???????????????? | | ???????????????????########### #???????????????? | | ???????????????????# ## #???????????????? | | ???????????????????#""" ## #???????????????? | | ???????????????????#""" ## #???????????????? | | ???????????????????#""" ## #???????????????? | | ???????????????????# ## #???????????????? | | ???????????????????#""" ## #???????????????? | | ???????????????????#""" ## #???????????????? | | ???????????????????#""" ## #########???????? | | ???????????????????# ## #???????? | | ???????????????????####g###### +???????? | | ????????????????????# #??# %%##### #???????? | | ????????????????????# #?## *##??????????????? | | ????????????????????# @#?# #??????????????? | | ????????????????????# ### #??????????????? | | ????????????????????# #??????????????? | | ????????????????????## #### #??????????????? | | ?????????????????????# #??# #??????????????? | | ?????????????????????# #??#######??????????????? | | ?????????????????????# #???????????????????????? | | ?????????????????????# #???????????????????????? | | ?????????????????????# #???????????????????????? | | ?????????????????????# #???????????????????????? | | ?????????????????????#####???????????????????????? | | ?????????????????????????????????????????????????? | | ?????????????????????????????????????????????????? | | ?????????????????????????????????????????????????? | | ?????????????????????????????????????????????????? | | ?????????????????????????????????????????????????? | | ?????????????????????????????????????????????????? | | ?????????????????????????????????????????????????? | | ?????????????????????????????????????????????????? | | ?????????????????????????????????????????????????? | | | | | | | | | | | +----------------------------------------------------+ Best States ------------- Heat Dissipation 38 Energy Generation 10 Energy Capacity 125 Matter Stores 300 Matter Capacity 300 Sight Range 16 Terrain Scan Density 10 Additional Mass Support 6 Evasion (%) 55 Item Schematics ----------------- None Robot Schematics ------------------ None Fabricated ------------ Nothing Alien Tech Used ----------------- None Achievements -------------- None Challenges ------------ None Game ------ Seed ScanCarbideScrap Manual? 0 Play Time 00:08:06 Cumulative 1.1 hours Start 2024.04.21 @ 22:01:23 End 2024.04.21 @ 22:08:31 Sessions 1 Manual Loads 0 Difficulty Rogue Special Mode None Game No. 2 Rogue 2 Adventurer 0 Explorer 0 Win Type - Total 0 Types 0/0/0/0/0/0/0/0/0 Lore% 0 Gallery% 3 Achievement% 4 Wizard Run 0 Options --------- Layout 1 ASCII 0 Keyboard 0 Movement Mouse Keybinds 0 Fullscreen 1 Font 24/Smallcaps Map View 50x35 Zoom Use 0% Tactical HUD 0 Map Filters NONE Filters NONE Steam 1 RUN: 0d40bdec-36a7-4f43-87ea-dacbc64d3b0b